fUST/lending_fUST_20250806
["ID","MTS","AMOUNT","RATE_DAILY","PERIOD"]
[377452277,1754415445116,1040.90189573,0.00026247,2]
[377452278,1754415445145,3959.09810427,0.00026247,2]
[377452279,1754415460717,1040.90189573,0.00026247,2]
[377452280,1754415460743,3959.09810427,0.00026247,2]
[377452281,1754415477462,1040.90189573,0.00026247,2]
[377452282,1754415477485,3959.09810427,0.00026247,2]
[377452283,1754415486003,300.0,0.00026246,2]
[377452284,1754415493443,501.38211044,0.00026247,2]
[377452285,1754415508644,239.51978529,0.00026247,2]
[377452286,1754415508666,4760.48021471,0.00026247,2]
[377452287,1754415516058,239.51978529,0.00026237,2]
[377452288,1754415516080,5000.0,0.00026237,2]
[377452289,1754415516102,5000.0,0.00026237,2]
[377452290,1754415516123,5000.0,0.00026237,2]
[377452291,1754415516150,5000.0,0.00026237,2]
[377452292,1754415516182,5000.0,0.00026237,2]
[377452293,1754415516205,5000.0,0.00026237,2]
[377452294,1754415516228,5000.0,0.00026237,2]
[377452295,1754415516250,5000.0,0.00026237,2]
[377452296,1754415516277,5000.0,0.00026237,2]
[377452297,1754415516299,5000.0,0.00026237,2]
[377452298,1754415516322,242.53061971,0.00026237,2]
[377452299,1754415516601,4757.46938029,0.00026247,2]
[377452300,1754415516623,242.53061971,0.00026247,2]
[377452301,1754415524680,4757.46938029,0.00026247,2]
[377452302,1754415524704,242.53061971,0.00026247,2]
[377452304,1754415528262,4757.46938029,0.00026237,2]
[377452305,1754415528290,16.82846423,0.00026237,2]
[377452306,1754415540116,4983.17153577,0.00026247,2]
[377452307,1754415540140,16.82846423,0.00026247,2]
[377452308,1754415542570,300.0,0.00026246,2]
[377452309,1754415543178,4683.17153577,0.00025983,2]
[377452310,1754415543204,316.82846423,0.00025983,2]
[377452311,1754415543376,899.07010527,0.00019483,2]
[377452312,1754415549225,3784.1014305,0.00026247,2]
[377452313,1754415549251,1215.8985695,0.00026247,2]
[377452314,1754415554042,500.0,0.00026246,2]
[377452315,1754415556392,1000.0,0.0003,120]
[377452316,1754415557431,3284.1014305,0.00026247,2]
[377452317,1754415557455,1715.8985695,0.00026247,2]
[377452318,1754415572555,3284.1014305,0.00026247,2]
[377452319,1754415572578,1715.8985695,0.00026247,2]
[377452320,1754415582544,150.0,0.00024071,2]
[377452321,1754415588414,3134.1014305,0.00026247,2]
[377452322,1754415588438,1865.8985695,0.00026247,2]
[377452323,1754415593635,450.59,0.00026237,3]
[377452324,1754415602810,1200.0,0.00026246,2]
[377452325,1754415603829,300.0,0.00026246,2]
[377452326,1754415604384,450.59,0.00026237,3]
[377452327,1754415604674,732.9214305,0.00026247,2]
[377452328,1754415604699,4267.0785695,0.00026247,2]
[377452329,1754415605038,300.0,0.00026246,2]
[377452330,1754415617490,362.01,0.00023896,2]
[377452331,1754415620439,70.9114305,0.00026247,2]
[377452332,1754415620466,4929.0885695,0.00026247,2]
[377452333,1754415625306,70.9114305,0.00026237,3]
[377452334,1754415625331,389.2485695,0.00026237,3]
[377452335,1754415635740,4610.7514305,0.00026247,2]
[377452336,1754415635770,389.2485695,0.00026247,2]
[377452337,1754415635967,230.08,0.00026237,3]
[377452338,1754415646599,2109.82,0.00026237,3]
[377452339,1754415651976,2270.8514305,0.00026247,2]
[377452340,1754415652000,2729.1485695,0.00026247,2]
[377452341,1754415656278,330.59812713,0.0002546,2]
[377452342,1754415657472,1054.91,0.00026237,3]
[377452343,1754415662990,300.0,0.00026246,2]
[377452344,1754415667858,585.34330337,0.00026247,2]
[377452345,1754415667882,2898.56235516,0.00026247,2]
[377452346,1754415668786,527.45,0.00026237,3]
[377452347,1754415675929,500.0,0.00026246,2]
[377452348,1754415679480,263.73,0.00026237,3]
[377452349,1754415683547,810.25764484,0.00026247,2]
[377452350,1754415683569,3176.41541992,0.00026247,2]
[377452351,1754415690427,791.19,0.00026237,3]
[377452352,1754415693815,1032.39458008,0.00026246,2]
[377452353,1754415693839,167.60541992,0.00026246,2]
[377452354,1754415717386,215.85310535,0.00025205,30]
[377452355,1754415721463,733.30991558,0.00030426,30]
[377452356,1754415732945,673.251311,0.00025262,2]
[377452357,1754415762391,1849.11,0.00026237,3]
[377452358,1754415763822,500.0,0.00026246,2]
[377452359,1754415763874,500.0,0.00026246,2]
[377452360,1754415763926,500.0,0.00026246,2]
[377452361,1754415763981,500.0,0.00026246,2]
[377452362,1754415764035,310.03326908,0.00026246,2]
[377452363,1754415764058,189.96673092,0.00026246,2]
[377452364,1754415764090,464.74073089,0.00026246,2]
[377452366,1754415771754,938.99251356,0.0002599,2]
[377452367,1754415773153,924.55,0.00026237,3]
[377452368,1754415775010,459.56044,0.00025293,2]
[377452369,1754415778934,206.31,0.00026237,10]
[377452370,1754415783330,300.0,0.00026246,2]
[377452371,1754415784157,462.28,0.00026237,3]
[377452372,1754415790653,541.94,0.00026237,10]
[377452373,1754415795073,231.14,0.00026237,3]
[377452374,1754415796892,280.51958463,0.00026237,2]
[377452375,1754415796916,5000.0,0.00026237,2]
[377452376,1754415796941,5000.0,0.00026237,2]
[377452377,1754415796965,5000.0,0.00026237,2]
[377452378,1754415796990,5000.0,0.00026237,2]
[377452379,1754415797014,5000.0,0.00026237,2]
[377452380,1754415797038,5000.0,0.00026237,2]
[377452381,1754415797060,5000.0,0.00026237,2]
[377452382,1754415797082,5000.0,0.00026237,2]
[377452383,1754415797105,5000.0,0.00026237,2]
[377452384,1754415797128,5000.0,0.00026237,2]
[377452385,1754415797150,5000.0,0.00026237,2]
[377452386,1754415797172,5000.0,0.00026237,2]
[377452387,1754415797196,4856.26321247,0.00026237,2]
[377452388,1754415797855,143.73678753,0.00026246,2]
[377452389,1754415797878,356.26321247,0.00026246,2]
[377452390,1754415800124,4643.73678753,0.00026237,2]
[377452391,1754415800151,4290.36890991,0.00026237,2]
[377452392,1754415803101,451.62,0.00026237,10]
[377452393,1754415805787,258.01109009,0.00026237,3]
[377452394,1754415805812,435.40890991,0.00026237,3]
[377452395,1754415813715,376.35,0.00026237,10]
[377452396,1754415826540,313.62,0.00026237,10]
[377452397,1754415830480,384.24372831,0.00026147,2]
[377452398,1754415833072,1541.8848374,0.00025262,2]
[377452399,1754415838168,261.35,0.00026237,10]
[377452400,1754415842942,300.0,0.00026246,2]
[377452401,1754415849842,217.79,0.00026237,10]
[377452402,1754415861645,181.5,0.00026237,10]
[377452403,1754415873798,151.25,0.00026237,10]
[377452404,1754415885398,756.25,0.00026237,10]
[377452405,1754415890103,80.35252438,0.00026147,2]
[377452406,1754415890125,2736.38853733,0.00026147,2]
[377452407,1754415902414,185.613,0.00025205,9]
[377452408,1754415904538,300.0,0.00026246,2]
[377452409,1754415904644,1200.0,0.00026246,2]
[377452410,1754415905862,150.0,0.00024029,2]
[377452411,1754415909885,427.99846267,0.00026246,2]
[377452412,1754415909913,72.00153733,0.00026246,2]
[377452413,1754415909951,500.0,0.00026246,2]
[377452414,1754415909982,500.0,0.00026246,2]
[377452415,1754415910014,500.0,0.00026246,2]
[377452416,1754415910062,500.0,0.00026246,2]
[377452417,1754415910127,500.0,0.00026246,2]
[377452418,1754415910163,500.0,0.00026246,2]
[377452419,1754415910198,500.0,0.00026246,2]
[377452420,1754415910225,151.0,0.00026232,2]
[377452421,1754415910274,500.0,0.00026246,2]
[377452422,1754415910317,500.0,0.00026246,2]
[377452423,1754415910362,276.99846267,0.00026246,2]
[377452424,1754415910387,223.00153733,0.00026246,2]
[377452425,1754415910429,500.0,0.00026246,2]
[377452426,1754415910463,500.0,0.00026246,2]
[377452427,1754415910500,500.0,0.00026246,2]
[377452428,1754415910529,500.0,0.00026246,2]
[377452429,1754415910610,500.0,0.00026246,2]
[377452430,1754415910642,500.0,0.00026246,2]
[377452431,1754415910675,500.0,0.00026246,2]
[377452432,1754415910710,500.0,0.00026246,2]
[377452433,1754415910743,500.0,0.00026246,2]
[377452434,1754415910783,276.99846267,0.00026246,2]
[377452435,1754415910811,223.00153733,0.00026246,2]
[377452436,1754415910849,500.0,0.00026246,2]
[377452437,1754415910915,500.0,0.00026246,2]
[377452438,1754415910961,500.0,0.00026246,2]
[377452439,1754415911009,500.0,0.00026246,2]
[377452440,1754415911053,500.0,0.00026246,2]
[377452441,1754415911239,500.0,0.00026246,2]
[377452442,1754415911283,500.0,0.00026246,2]
[377452443,1754415911332,400.0,0.00026246,2]
[377452444,1754415920815,500.0,0.00026246,2]
[377452445,1754415920869,376.99846267,0.00026246,2]
[377452446,1754415920894,123.00153733,0.00026246,2]
[377452447,1754415920939,626.68277895,0.00026246,2]
[377452449,1754415941456,500.0,0.00026246,2]
[377452450,1754415941485,500.0,0.00026246,2]
[377452451,1754415941514,500.0,0.00026246,2]
[377452452,1754415941544,453.9189198,0.00026246,2]
[377452453,1754415941573,500.0,0.00026246,2]
[377452454,1754415941603,500.0,0.00026246,2]
[377452455,1754415941632,500.0,0.00026246,2]
[377452456,1754415941665,500.0,0.00026246,2]
[377452457,1754415941692,296.39676392,0.00026246,2]
[377452458,1754415941720,203.60323608,0.00026246,2]
[377452459,1754415941749,500.0,0.00026246,2]
[377452460,1754415941927,500.0,0.00026246,2]
[377452461,1754415941968,500.0,0.00026246,2]
[377452462,1754415941997,500.0,0.00026246,2]
[377452463,1754415942025,500.0,0.00026246,2]
[377452464,1754415942053,500.0,0.00026246,2]
[377452465,1754415942082,500.0,0.00026246,2]
[377452466,1754415942108,500.0,0.00026246,2]
[377452467,1754415942135,500.0,0.00026246,2]
[377452468,1754415942162,296.39676392,0.00026246,2]
[377452469,1754415942185,203.60323608,0.00026246,2]
[377452470,1754415942213,500.0,0.00026246,2]
[377452471,1754415942241,500.0,0.00026246,2]
[377452472,1754415942272,500.0,0.00026246,2]
[377452473,1754415942301,500.0,0.00026246,2]
[377452474,1754415942332,500.0,0.00026246,2]
[377452475,1754415942362,500.0,0.00026246,2]
[377452476,1754415942393,500.0,0.00026246,2]
[377452477,1754415942426,500.0,0.00026246,2]
[377452478,1754415942455,500.0,0.00026246,2]
[377452479,1754415942488,296.39676392,0.00026246,2]
[377452480,1754415942514,203.60323608,0.00026246,2]
[377452481,1754415942548,500.0,0.00026246,2]
[377452482,1754415942575,233.51058802,0.00026246,2]
[377452483,1754415942606,500.0,0.00026246,2]
[377452484,1754415942636,500.0,0.00026246,2]
[377452485,1754415942665,500.0,0.00026246,2]
[377452486,1754415942694,500.0,0.00026246,2]
[377452487,1754415942725,500.0,0.00026246,2]
[377452488,1754415942756,500.0,0.00026246,2]
[377452489,1754415942787,500.0,0.00026246,2]
[377452490,1754415942819,500.0,0.00026246,2]
[377452491,1754415942850,62.8861759,0.00026246,2]
[377452492,1754415942875,437.1138241,0.00026246,2]
[377452493,1754415942907,500.0,0.00026246,2]
[377452494,1754415942943,500.0,0.00026246,2]
[377452495,1754415942973,500.0,0.00026246,2]
[377452496,1754415943002,500.0,0.00026246,2]
[377452497,1754415943031,500.0,0.00026246,2]
[377452498,1754415943060,500.0,0.00026246,2]
[377452499,1754415943089,500.0,0.00026246,2]
[377452500,1754415943116,500.0,0.00026246,2]
[377452501,1754415943145,500.0,0.00026246,2]
[377452502,1754415943173,62.8861759,0.00026246,2]
[377452503,1754415943198,437.1138241,0.00026246,2]
[377452504,1754415943226,500.0,0.00026246,2]
[377452505,1754415943255,500.0,0.00026246,2]
[377452506,1754415943289,500.0,0.00026246,2]
[377452507,1754415943322,500.0,0.00026246,2]
[377452508,1754415943355,500.0,0.00026246,2]
[377452509,1754415943384,500.0,0.00026246,2]
[377452510,1754415943412,500.0,0.00026246,2]
[377452511,1754415943445,500.0,0.00026246,2]
[377452512,1754415943481,500.0,0.00026246,2]
[377452513,1754415943518,62.8861759,0.00026246,2]
[377452514,1754415943542,437.1138241,0.00026246,2]
[377452515,1754415943572,330.06514881,0.00026246,2]
[377452516,1754415943600,500.0,0.00026246,2]
[377452517,1754415943636,500.0,0.00026246,2]
[377452518,1754415943672,500.0,0.00026246,2]
[377452519,1754415943735,500.0,0.00026246,2]
[377452520,1754415943776,500.0,0.00026246,2]
[377452521,1754415943807,500.0,0.00026246,2]
[377452522,1754415943846,500.0,0.00026246,2]
[377452523,1754415943877,500.0,0.00026246,2]
[377452524,1754415943911,232.82102709,0.00026246,2]
[377452525,1754415943937,267.17897291,0.00026246,2]
[377452526,1754415943970,500.0,0.00026246,2]
[377452527,1754415944002,500.0,0.00026246,2]
[377452528,1754415944031,500.0,0.00026246,2]
[377452529,1754415949157,500.0,0.00026246,2]
[377452530,1754415949193,500.0,0.00026246,2]
[377452531,1754415949230,500.0,0.00026246,2]
[377452532,1754415949274,500.0,0.00026246,2]
[377452533,1754415949318,500.0,0.00026246,2]
[377452534,1754415949350,604.20911482,0.00026246,2]
[377452535,1754415949483,128.61191227,0.00026246,2]
[377452536,1754415949505,31.54242226,0.00026246,2]
[377452537,1754415949532,500.0,0.00026246,2]
[377452538,1754415949566,500.0,0.00026246,2]
[377452539,1754415949593,500.0,0.00026246,2]
[377452540,1754415949807,500.0,0.00026246,2]
[377452541,1754415949836,500.0,0.00026246,2]
[377452542,1754415949864,500.0,0.00026246,2]
[377452543,1754415949891,500.0,0.00026246,2]
[377452544,1754415949975,500.0,0.00026246,2]
[377452545,1754415950161,386.88596721,0.00026246,2]
[377452546,1754415950187,500.0,0.00026246,2]
[377452547,1754415950215,81.57161053,0.00026246,2]
[377452548,1754415950241,418.42838947,0.00026246,2]
[377452549,1754415950272,500.0,0.00026246,2]
[377452550,1754415950299,190.43033329,0.00026246,2]
[377452551,1754415950471,500.0,0.00026246,2]
[377452552,1754415950512,500.0,0.00026246,2]
[377452553,1754415950572,500.0,0.00026246,2]
[377452554,1754415950770,500.0,0.00026246,2]
[377452555,1754415950968,171.07974907,0.00026246,2]
[377452556,1754415951067,500.0,0.00026246,2]
[377452557,1754415951383,500.0,0.00026246,2]
[377452558,1754415951411,500.0,0.00026246,2]
[377452559,1754415951676,220.06152817,0.00026246,2]
[377452560,1754415951699,279.93847183,0.00026246,2]
[377452561,1754415951727,500.0,0.00026246,2]
[377452562,1754415951760,500.0,0.00026246,2]
[377452563,1754415951798,500.0,0.00026246,2]
[377452564,1754415951828,216.24624938,0.00026246,2]
[377452565,1754415951856,500.0,0.00026246,2]
[377452566,1754415951889,500.0,0.00026246,2]
[377452567,1754415951925,500.0,0.00026246,2]
[377452568,1754415951960,500.0,0.00026246,2]
[377452569,1754415953391,500.0,0.00026246,2]
[377452570,1754415953671,500.0,0.00026246,2]
[377452571,1754415954119,3.81527879,0.00026246,2]
[377452572,1754415954144,496.18472121,0.00026246,2]
[377452573,1754415954323,500.0,0.00026246,2]
[377452574,1754415954820,500.0,0.00026246,2]
[377452575,1754415954856,433.95778016,0.00026246,2]
[377452576,1754415957517,198.35887628,0.0002546,2]
[377452577,1754415959013,500.0,0.00026246,2]
[377452578,1754415959055,500.0,0.00026246,2]
[377452579,1754415959085,500.0,0.00026246,2]
[377452580,1754415959113,500.0,0.00026246,2]
[377452581,1754415959143,500.0,0.00026246,2]
[377452582,1754415959176,371.49862235,0.00026246,2]
[377452583,1754415959200,128.50137765,0.00026246,2]
[377452584,1754415959231,500.0,0.00026246,2]
[377452585,1754415959260,500.0,0.00026246,2]
[377452586,1754415959302,500.0,0.00026246,2]
[377452587,1754415959334,500.0,0.00026246,2]
[377452588,1754415959368,500.0,0.00026246,2]
[377452589,1754415959400,500.0,0.00026246,2]
[377452590,1754415959439,500.0,0.00026246,2]
[377452591,1754415959471,500.0,0.00026246,2]
[377452592,1754415959499,395.89662982,0.00026246,2]
[377452593,1754415959528,475.60199253,0.00026246,2]
[377452594,1754415959553,24.39800747,0.00026246,2]
[377452595,1754415959607,500.0,0.00026246,2]
[377452596,1754415959641,500.0,0.00026246,2]
[377452597,1754415959669,295.45773274,0.00026246,2]
[377452598,1754415959700,500.0,0.00026246,2]
[377452599,1754415959733,500.0,0.00026246,2]
[377452600,1754415959766,500.0,0.00026246,2]
[377452601,1754415959797,500.0,0.00026246,2]
[377452602,1754415959829,500.0,0.00026246,2]
[377452603,1754415959855,627.24,0.00026237,3]
[377452604,1754415959883,500.0,0.00026246,2]
[377452605,1754415959916,52.90425979,0.00026246,2]
[377452606,1754415959940,447.09574021,0.00026246,2]
[377452607,1754415959968,469.07135445,0.00026246,2]
[377452608,1754415959997,500.0,0.00026246,2]
[377452609,1754415960029,500.0,0.00026246,2]
[377452610,1754415960064,500.0,0.00026246,2]
[377452611,1754415963502,300.0,0.00026245,2]
[377452612,1754415970349,313.62,0.00026237,3]
[377452613,1754415981163,156.81,0.00026237,3]
[377452614,1754415982441,257.9741735,0.00026246,2]
[377452615,1754415982468,500.0,0.00026246,2]
[377452616,1754415982495,527.92295842,0.00026246,2]
[377452617,1754415982523,500.0,0.00026246,2]
[377452618,1754415982560,27.50577342,0.00026246,2]
[377452619,1754415982582,472.49422658,0.00026246,2]
[377452620,1754415982623,500.0,0.00026246,2]
[377452621,1754415982650,392.54684511,0.00026246,2]
[377452622,1754415982677,356.30212084,0.00026246,2]
[377452623,1754415986331,3278.65680747,0.0002599,2]
[377452624,1754415986356,5000.0,0.0002599,2]
[377452625,1754415986379,5000.0,0.0002599,2]
[377452626,1754415986400,5000.0,0.0002599,2]
[377452627,1754415986422,5000.0,0.0002599,2]
[377452628,1754415986445,5000.0,0.0002599,2]
[377452629,1754415986468,5000.0,0.0002599,2]
[377452630,1754415986490,5000.0,0.0002599,2]
[377452631,1754415986512,5000.0,0.0002599,2]
[377452632,1754415986533,5000.0,0.0002599,2]
[377452633,1754415986554,5000.0,0.0002599,2]
[377452634,1754415986575,5000.0,0.0002599,2]
[377452635,1754415986596,5000.0,0.0002599,2]
[377452636,1754415986617,5000.0,0.0002599,2]
[377452637,1754415986638,5000.0,0.0002599,2]
[377452638,1754415986659,5000.0,0.0002599,2]
[377452639,1754415986680,5000.0,0.0002599,2]
[377452640,1754415986702,5000.0,0.0002599,2]
[377452641,1754415986723,5000.0,0.0002599,2]
[377452642,1754415986744,5000.0,0.0002599,2]
[377452643,1754415986765,1721.34319253,0.0002599,2]
[377452644,1754415991842,470.44,0.00026237,3]
[377452645,1754415993031,1200.0,0.00026246,2]
[377452646,1754415998617,500.0,0.00026246,2]
[377452647,1754415998653,403.15801159,0.00026246,2]
[377452648,1754415998692,500.0,0.00026246,2]
[377452649,1754415998726,205.05879588,0.00026246,2]
[377452650,1754415998753,294.94120412,0.00026246,2]
[377452651,1754415998788,500.0,0.00026246,2]
[377452652,1754415998831,500.0,0.00026246,2]
[377452653,1754415998922,500.0,0.00026246,2]
[377452654,1754415998955,508.76537381,0.00026246,2]
[377452655,1754415999028,500.0,0.00026246,2]
[377452656,1754415999306,500.0,0.00026246,2]
[377452657,1754415999338,390.60416368,0.00026246,2]
[377452658,1754415999371,500.0,0.00026246,2]
[377452659,1754415999411,500.0,0.00026246,2]
[377452660,1754415999439,305.68925839,0.00026246,2]
[377452661,1754415999465,194.31074161,0.00026246,2]
[377452662,1754415999497,500.0,0.00026246,2]
[377452663,1754415999533,500.0,0.00026246,2]
[377452664,1754415999567,500.0,0.00026246,2]
[377452665,1754415999600,500.0,0.00026246,2]
[377452666,1754415999779,500.0,0.00026246,2]
[377452667,1754415999817,500.0,0.00026246,2]
[377452668,1754415999851,500.0,0.00026246,2]
[377452669,1754415999913,500.0,0.00026246,2]
[377452670,1754416001235,500.0,0.00026246,2]
[377452672,1754416010515,305.68925839,0.00026246,2]
[377452673,1754416010539,194.31074161,0.00026246,2]
[377452674,1754416010566,500.0,0.00026246,2]
[377452675,1754416010593,304.25681926,0.00026246,2]
[377452676,1754416010621,500.0,0.00026246,2]
[377452677,1754416012469,193.46,0.00026237,3]
[377452678,1754416016185,500.0,0.00026246,2]
[377452679,1754416023174,580.38,0.00026237,3]
[377452680,1754416030077,215.85310535,0.00025205,30]
[377452681,1754416031330,500.0,0.00026246,2]
[377452682,1754416031359,500.0,0.00026246,2]
[377452683,1754416031578,500.0,0.00026246,2]
[377452684,1754416031801,500.0,0.00026246,2]
[377452710,1754416039238,227.59243913,0.00026246,2]
[377452711,1754416039261,72.40756087,0.00026246,2]
[377452712,1754416048112,183.29688319,0.0003,120]
[377452913,1754416064791,2200.0,0.00025044,2]
[377453041,1754416068580,2200.0,0.0002614,2]
[377453149,1754416082030,200.64,0.00026,2]
[377453225,1754416084131,300.0,0.00026246,2]
[377453490,1754416099638,26.95243913,0.00025285,2]
[377453491,1754416099661,973.04756087,0.00025285,2]
[377453560,1754416101609,209.65399636,0.00026246,2]
[377453576,1754416104528,500.0,0.00026246,2]
[377453577,1754416104559,500.0,0.00026246,2]
[377453578,1754416104594,500.0,0.00026246,2]
[377453579,1754416104628,500.0,0.00026246,2]
[377453580,1754416104658,500.0,0.00026246,2]
[377453581,1754416104692,500.0,0.00026246,2]
[377453582,1754416104730,500.0,0.00026246,2]
[377453583,1754416104759,317.29844277,0.00026246,2]
[377453584,1754416104782,182.70155723,0.00026246,2]
[377453585,1754416104812,500.0,0.00026246,2]
[377453586,1754416104846,500.0,0.00026246,2]
[377453587,1754416104879,500.0,0.00026246,2]
[377453588,1754416104908,500.0,0.00026246,2]
[377453589,1754416104941,500.0,0.00026246,2]
[377453590,1754416104975,500.0,0.00026246,2]
[377453591,1754416105005,250.9401419,0.00026246,2]
[377453592,1754416105042,500.0,0.00026246,2]
[377453593,1754416105076,500.0,0.00026246,2]
[377453594,1754416105111,500.0,0.00026246,2]
[377453595,1754416106452,66.35830087,0.00026237,2]
[377453596,1754416106479,5000.0,0.00026237,2]
[377453597,1754416106504,5000.0,0.00026237,2]
[377453598,1754416106529,5000.0,0.00026237,2]
[377453599,1754416106553,5000.0,0.00026237,2]
[377453600,1754416106577,5000.0,0.00026237,2]
[377453601,1754416106601,5000.0,0.00026237,2]
[377453602,1754416106625,5000.0,0.00026237,2]
[377453603,1754416106648,5000.0,0.00026237,2]
[377453604,1754416106672,5000.0,0.00026237,2]
[377453605,1754416106696,5000.0,0.00026237,2]
[377453606,1754416106720,5000.0,0.00026237,2]
[377453607,1754416106745,5000.0,0.00026237,2]
[377453608,1754416106768,5000.0,0.00026237,2]
[377453609,1754416106793,5000.0,0.00026237,2]
[377453610,1754416106818,5000.0,0.00026237,2]
[377453611,1754416106841,5000.0,0.00026237,2]
[377453612,1754416106865,5000.0,0.00026237,2]
[377453613,1754416106889,5000.0,0.00026237,2]
[377453614,1754416106914,5000.0,0.00026237,2]
[377453615,1754416106939,5000.0,0.00026237,2]
[377453616,1754416106963,5000.0,0.00026237,2]
[377453617,1754416106987,5000.0,0.00026237,2]
[377453618,1754416107010,5000.0,0.00026237,2]
[377453619,1754416107035,5000.0,0.00026237,2]
[377453620,1754416107059,5000.0,0.00026237,2]
[377453621,1754416107082,5000.0,0.00026237,2]
[377453622,1754416107107,5000.0,0.00026237,2]
[377453623,1754416107131,5000.0,0.00026237,2]
[377453624,1754416107156,4605.57704613,0.00026237,2]
[377453625,1754416108794,394.42295387,0.00026246,2]
[377453626,1754416108821,105.57704613,0.00026246,2]
[377453627,1754416108853,500.0,0.00026246,2]
[377453628,1754416109417,4394.42295387,0.00026237,2]
[377453629,1754416109440,3640.63893197,0.00026237,2]
[377453868,1754416121858,500.0,0.00026246,2]
[377453872,1754416121929,500.0,0.00026246,2]
[377453874,1754416121972,359.36106803,0.00026246,2]
[377453876,1754416121995,180.22859495,0.00026246,2]
[377453989,1754416126384,1986.03736301,0.00024147,2]
[377453991,1754416134599,500.0,0.00026246,2]
[377453992,1754416134647,597.7814273,0.00026246,2]
[377454118,1754416139113,500.0,0.00026246,2]
[377454121,1754416139167,500.0,0.00026246,2]
[377454124,1754416139222,500.0,0.00026246,2]
[377454127,1754416139280,235.95261474,0.00026246,2]
[377454129,1754416139309,264.04738526,0.00026246,2]
[377454132,1754416139352,165.52331579,0.00026246,2]
[377454253,1754416142850,300.0,0.00026246,2]
[377454514,1754416154391,500.0,0.00026246,2]
[377454515,1754416154422,500.0,0.00026246,2]
[377454517,1754416154455,500.0,0.00026246,2]
[377454519,1754416154483,500.0,0.00026246,2]
[377454521,1754416154513,500.0,0.00026246,2]
[377454523,1754416154545,500.0,0.00026246,2]
[377454524,1754416154598,500.0,0.00026246,2]
[377454526,1754416154641,185.96511923,0.00026246,2]
[377454527,1754416154670,500.0,0.00026246,2]
[377454528,1754416154699,84.46417972,0.00026246,2]
[377454530,1754416154723,415.53582028,0.00026246,2]
[377454531,1754416154751,500.0,0.00026246,2]
[377454532,1754416154779,500.0,0.00026246,2]
[377454533,1754416154806,500.0,0.00026246,2]
[377454534,1754416154835,500.0,0.00026246,2]
[377454535,1754416154867,500.0,0.00026246,2]
[377454536,1754416154903,500.0,0.00026246,2]
[377454537,1754416154930,500.0,0.00026246,2]